fUSD/lending_fUSD_20240318
["ID","MTS","AMOUNT","RATE_DAILY","PERIOD"]
[319435855,1710736333038,-922.75,0.00033424,4]
[319435856,1710736333047,-500.0,0.00033424,4]
[319435857,1710736333057,-500.0,0.00033424,4]
[319435858,1710736333066,-1859.01,0.00033424,4]
[319435859,1710736333076,-998.14,0.00033424,4]
[319435860,1710736333086,-712.78,0.00033424,4]
[319435861,1710736333097,-3134.02,0.00033424,4]
[319435862,1710736333106,-720.74,0.00033424,4]
[319435863,1710736333116,-835.55,0.00033424,4]
[319435864,1710736333125,-794.41,0.00033424,4]
[319435865,1710736333135,-3743.94,0.00033424,4]
[319435866,1710736333145,-500.0,0.00033424,4]
[319435867,1710736333155,-642.05,0.00033424,4]
[319435868,1710736333164,-1113.65,0.00033424,4]
[319435869,1710736333174,-589.6,0.00033424,4]
[319435870,1710736333184,-287.83607342,0.00033424,4]
[319435871,1710736333193,-633.04,0.00033424,4]
[319435872,1710736333203,-512.73,0.00033424,4]
[319435873,1710736333213,-774.64,0.00033424,4]
[319435874,1710736333223,-1524.04,0.00033424,4]
[319435875,1710736333232,-1898.65,0.00033424,4]
[319435876,1710736333241,-1586.83,0.00033424,4]
[319435877,1710736333251,-500.0,0.00033424,4]
[319435878,1710736333261,-507.3952565,0.00033424,4]
[319435879,1710736333270,-833.34,0.00033424,4]
[319435880,1710736333280,-1329.2,0.00033424,4]
[319435881,1710736333289,-500.0,0.00033424,4]
[319435882,1710736333299,-574.74,0.00033424,4]
[319435883,1710736333308,-501.93,0.00033424,4]
[319435884,1710736333317,-265.81548701,0.00033424,4]
[319435885,1710736333326,-899.79,0.00033424,4]
[319435886,1710736333336,-500.0,0.00033424,4]
[319435887,1710736333346,-836.63,0.00033424,4]
[319435888,1710736333355,-663.74,0.00033424,4]
[319435889,1710736333366,-1143.03,0.00033424,4]
[319435890,1710736333375,-643.58,0.00033424,4]
[319435891,1710736333385,-1917.2,0.00033424,4]
[319435892,1710736333394,-1716.33,0.00033424,4]
[319435893,1710736333403,-1304.54,0.00033424,4]
[319435894,1710736333413,-500.0,0.00033424,4]
[319435895,1710736333423,-705.47,0.00033424,4]
[319435896,1710736333433,-794.56,0.00033424,4]
[319435897,1710736333443,-500.0,0.00033424,4]
[319435898,1710736333452,-588.98,0.00033424,4]
[319435899,1710736333462,-2333.6,0.00033424,4]
[319435900,1710736333472,-560.65,0.00033424,4]
[319435901,1710736333482,-1061.17,0.00033424,4]
[319435902,1710736333492,-758.7,0.00033424,4]
[319435903,1710736333502,-1095.12,0.00033424,4]
[319435904,1710736333512,-2145.95,0.00033424,4]
[319435905,1710736333522,-1627.27,0.00033424,4]
[319435906,1710736333533,-500.0,0.00033424,4]
[319435907,1710736333542,-500.0,0.00033424,4]
[319435908,1710736333552,-2012.26,0.00033424,4]
[319435909,1710736333561,-1352.76,0.00033424,4]
[319435910,1710736333570,-190.0,0.00033424,2]
[319435911,1710736333580,-537.95,0.00033424,4]
[319435912,1710736333589,-500.0,0.00033424,4]
[319435913,1710736333599,-2747.25,0.00033424,4]
[319435914,1710736333607,-606.33,0.00033424,4]
[319435915,1710736333617,-500.0,0.00033424,4]
[319435916,1710736333626,-500.0,0.00033424,4]
[319435917,1710736333636,-500.0,0.00033424,4]
[319435918,1710736333645,-500.0,0.00033424,4]
[319435919,1710736333654,-554.01,0.00033424,4]
[319435920,1710736333664,-807.58,0.00033424,4]
[319435921,1710736333674,-2956.82,0.00033424,4]
[319435922,1710736333683,-500.0,0.00033424,4]
[319435923,1710736333693,-500.0,0.00033424,4]
[319435924,1710736333702,-500.0,0.00033424,4]
[319435925,1710736333712,-1607.18,0.00033424,4]
[319435926,1710736333722,-500.0,0.00033424,4]
[319435927,1710736333731,-1221.54,0.00033424,4]
[319435928,1710736333741,-1838.23,0.00033424,4]
[319435929,1710736333751,-1026.01,0.00033424,4]
[319435930,1710736333764,-842.1,0.00033424,4]
[319435931,1710736333775,-512.31,0.00033424,4]
[319435932,1710736333788,-500.0,0.00033424,4]
[319435933,1710736333798,-831.26,0.00033424,4]
[319435934,1710736333807,-1448.23,0.00033424,4]
[319435935,1710736333817,-1157.32,0.00033424,4]
[319435936,1710736333828,-556.38,0.00033424,4]
[319435937,1710736333839,-313.80176937,0.00033424,4]
[319435938,1710736333849,-271.58815389,0.00033424,4]
[319435939,1710736333858,-1287.24,0.00033424,4]
[319435940,1710736333867,-1436.69,0.00033424,4]
[319435941,1710736333877,-1335.54,0.00033424,4]
[319435942,1710736333887,-500.0,0.00033424,4]
[319435943,1710736333896,-1968.76,0.00033424,4]
[319435944,1710736333906,-799.94,0.00033424,4]
[319435945,1710736333917,-1597.09,0.00033424,4]
[319435946,1710736333926,-500.0,0.00033424,4]
[319435947,1710736333936,-500.0,0.00033424,4]
[319435948,1710736333946,-500.0,0.00033424,4]
[319435949,1710736333956,-632.08,0.00033424,4]
[319435950,1710736333965,-681.46,0.00033424,4]
[319435951,1710736333975,-1138.91,0.00033424,4]
[319435952,1710736333984,-1427.1,0.00033424,4]
[319435953,1710736333993,-809.76,0.00033424,4]
[319435954,1710736334003,-500.0,0.00033424,4]
[319435955,1710736334012,-1229.86,0.00033424,4]
[319435956,1710736334022,-500.0,0.00033424,4]
[319435957,1710736334034,-691.68,0.00033424,4]
[319435958,1710736334044,-2635.68,0.00033424,4]
[319435959,1710736334053,-500.0,0.00033424,4]
[319435960,1710736334063,-500.0,0.00033424,4]
[319435961,1710736334155,-500.0,0.00033424,4]
[319435962,1710736334165,-788.73,0.00033424,4]
[319435963,1710736334176,-500.0,0.00033424,4]
[319435964,1710736334185,-500.0,0.00033424,4]
[319435965,1710736334195,-2115.38,0.00033424,4]
[319435966,1710736334205,-500.0,0.00033424,4]
[319435967,1710736334215,-1520.72,0.00033424,4]
[319435968,1710736334225,-1607.09,0.00033424,4]
[319435969,1710736334234,-500.0,0.00033424,4]
[319435970,1710736334243,-500.0,0.00033424,4]
[319435971,1710736334253,-1832.55,0.00033424,4]
[319435972,1710736334262,-824.57,0.00033424,4]
[319435973,1710736334271,-1581.71,0.00033424,4]
[319435974,1710736334284,-583.42,0.00033424,4]
[319435975,1710736334293,-1212.73,0.00033424,4]
[319435976,1710736334302,-1404.3,0.00033424,4]
[319435977,1710736334312,-24025.87,0.00033424,4]
[319435978,1710736334321,-500.0,0.00033424,4]
[319435979,1710736334330,-2851.25,0.00033424,4]
[319435980,1710736334340,-2546.72,0.00033424,4]
[319435981,1710736334350,-2287.3,0.00033424,4]
[319435982,1710736334359,-500.0,0.00033424,4]
[319435983,1710736334368,-500.0,0.00033424,4]
[319435984,1710736334377,-647.58,0.00033424,4]
[319435985,1710736334387,-585.33,0.00033424,4]
[319435986,1710736334397,-1053.54,0.00033424,4]
[319435987,1710736334406,-1503.64,0.00033424,4]
[319435988,1710736334415,-1183.08,0.00033424,4]
[319435989,1710736334424,-205.63492746,0.00033424,4]
[319435990,1710736334434,-554.14,0.00033424,4]
[319435991,1710736334443,-2122.6,0.00033424,4]
[319435992,1710736334453,-500.0,0.00033424,4]
[319435993,1710736334462,-513.85,0.00033424,4]
[319435994,1710736334471,-1088.26,0.00033424,4]
[319435995,1710736334481,-1355.29,0.00033424,4]
[319435996,1710736334490,-1081.54,0.00033424,4]
[319435997,1710736334501,-602.31,0.00033424,4]
[319435998,1710736334510,-637.80620354,0.00033424,4]
[319435999,1710736334519,-16800.01,0.00033424,4]
[319436000,1710736334533,-732.67,0.00033424,4]
[319436001,1710736334542,-500.0,0.00033424,4]
[319436002,1710736334552,-500.0,0.00033424,4]
[319436003,1710736334562,-742.96,0.00033424,4]
[319436004,1710736334573,-875.28,0.00033424,4]
[319436005,1710736334582,-500.0,0.00033424,4]
[319436006,1710736334592,-1382.05,0.00033424,4]
[319436007,1710736334601,-9617.26,0.00033424,4]
[319436008,1710736334611,-632.75,0.00033424,4]
[319436009,1710736334620,-523.3,0.00033424,4]
[319436010,1710736334629,-500.0,0.00033424,4]
[319436011,1710736334638,-9955.07,0.00033424,4]
[319436012,1710736334648,-1242.28,0.00033424,4]
[319436013,1710736334657,-500.0,0.00033424,4]
[319436014,1710736334667,-815.39,0.00033424,4]
[319436015,1710736334676,-606.68,0.00033424,4]
[319436016,1710736334686,-2827.35,0.00033424,4]
[319436017,1710736334695,-500.0,0.00033424,4]
[319436018,1710736334705,-584.4,0.00033424,4]
[319436019,1710736334715,-319.77254842,0.00033424,4]
[319436020,1710736334724,-2844.9,0.00033424,4]
[319436021,1710736334734,-918.65,0.00033424,4]
[319436022,1710736334744,-2329.09,0.00033424,4]
[319436023,1710736334755,-2657.41,0.00033424,4]
[319436024,1710736334766,-500.0,0.00033424,4]
[319436025,1710736334779,-5715.22,0.00033424,4]
[319436026,1710736334788,-1178.39,0.00033424,4]
[319436027,1710736334798,-1030.3,0.00033424,4]
[319436028,1710736334808,-7010.64,0.00033424,4]
[319436029,1710736334818,-500.0,0.00033424,4]
[319436030,1710736334827,-795.31,0.00033424,4]
[319436031,1710736334840,-647.9,0.00033424,4]
[319436032,1710736334849,-756.1,0.00033424,4]
[319436033,1710736334859,-500.0,0.00033424,4]
[319436034,1710736334869,-500.0,0.00033424,4]
[319436035,1710736334879,-1213.71,0.00033424,4]
[319436036,1710736334889,-3112.49,0.00033424,4]
[319436037,1710736334898,-16099.23,0.00033424,4]
[319436038,1710736334908,-1067.48,0.00033424,4]
[319436039,1710736334918,-1085.99,0.00033424,4]
[319436040,1710736334927,-500.0,0.00033424,4]
[319436041,1710736334937,-7279.53,0.00033424,4]
[319436042,1710736334947,-500.0,0.00033424,4]
[319436043,1710736334956,-3639.26,0.00033424,4]
[319436044,1710736334965,-4937.08,0.00033424,4]
[319436045,1710736334974,-14656.9,0.00033424,4]
[319436046,1710736334983,-500.0,0.00033424,4]
[319436047,1710736334992,-1119.07,0.00033424,4]
[319436048,1710736335001,-500.0,0.00033424,4]
[319436049,1710736335011,-714.97,0.00033424,4]
[319436050,1710736335020,-500.0,0.00033424,4]
[319436051,1710736335031,-3778.15,0.00033424,4]
[319436052,1710736335040,-2442.22,0.00033424,4]
[319436053,1710736335050,-915.55,0.00033424,4]
[319436054,1710736335059,-500.0,0.00033424,4]
[319436055,1710736335068,-500.0,0.00033424,4]
[319436056,1710736335078,-2039.35,0.00033424,4]
[319436057,1710736335087,-1590.31,0.00033424,4]
[319436058,1710736335096,-500.0,0.00033424,2]
[319436059,1710736335106,-2078.76,0.00033424,4]
[319436060,1710736335115,-765.76,0.00033424,4]
[319436061,1710736335124,-2024.35,0.00033424,4]
[319436062,1710736335133,-500.0,0.00033424,4]
[319436063,1710736335142,-185.6132246,0.00033425,2]
[319436064,1710736335152,-150.0,0.00033431,7]
[319436065,1710736335161,-151.031811,0.00033498,4]
[319436066,1710736335170,-151.031811,0.00033498,5]
[319436067,1710736335179,-1131.52488461,0.000335,2]
[319436068,1710736335189,-8365.87,0.000335,2]
[319436069,1710736335465,-8365.87,0.000335,2]
[319436070,1710736335478,-8365.87,0.000335,2]
[319436071,1710736335488,-8365.87,0.000335,2]
[319436072,1710736335500,-8365.87,0.000335,2]
[319436073,1710736335510,-8365.87,0.000335,2]
[319436074,1710736335520,-8365.87,0.000335,2]
[319436075,1710736335531,-8365.87,0.000335,2]
[319436076,1710736335541,-8365.87,0.000335,2]
[319436077,1710736335551,-8365.87,0.000335,2]
[319436078,1710736335561,-8365.87,0.000335,2]
[319436079,1710736335570,-8365.87,0.000335,2]
[319436080,1710736335580,-8365.87,0.000335,2]
[319436081,1710736335589,-8365.87,0.000335,2]
[319436082,1710736335599,-8365.87,0.000335,2]
[319436083,1710736335608,-8365.87,0.000335,2]
[319436084,1710736335618,-8365.87,0.000335,2]
[319436085,1710736335627,-8365.87,0.000335,2]
[319436086,1710736335637,-8365.87,0.000335,2]
[319436087,1710736335647,-8365.87,0.000335,2]
[319436088,1710736335656,-150.0,0.00033534,7]
[319436089,1710736335666,-150.0,0.00033542,7]
[319436090,1710736335675,-156.19687462,0.00033562,30]
[319436091,1710736335685,-156.1968746,0.00033562,30]
[319436092,1710736335694,-812.0,0.000336,22]
[319436093,1710736335705,-150.0,0.00033653,7]
[319436094,1710736335714,-150.0,0.00033698,7]
[319436095,1710736335724,-500.0,0.00033698,4]
[319436096,1710736335733,-500.0,0.00033698,4]
[319436097,1710736335743,-500.0,0.00033698,4]
[319436098,1710736335757,-500.0,0.00033698,4]
[319436099,1710736335766,-500.0,0.00033698,4]
[319436100,1710736335775,-500.0,0.00033698,4]
[319436101,1710736335785,-508.25967109,0.00033698,4]
[319436102,1710736335797,-500.0,0.00033698,4]
[319436103,1710736335806,-500.0,0.00033698,4]
[319436104,1710736335815,-500.0,0.00033698,4]
[319436105,1710736335824,-892.35,0.00033698,4]
[319436106,1710736335835,-588.99,0.00033698,4]
[319436107,1710736335844,-500.0,0.00033698,4]
[319436108,1710736335853,-500.0,0.00033698,4]
[319436109,1710736335862,-500.0,0.00033698,4]
[319436110,1710736335871,-500.0,0.00033698,4]
[319436111,1710736335881,-500.0,0.00033698,4]
[319436112,1710736335890,-500.0,0.00033698,4]
[319436113,1710736335900,-752.67,0.00033698,4]
[319436114,1710736335909,-500.0,0.00033698,4]
[319436115,1710736335918,-500.0,0.00033698,4]
[319436116,1710736335927,-500.0,0.00033698,4]
[319436117,1710736335937,-500.0,0.00033698,4]
[319436118,1710736335946,-500.0,0.00033698,4]
[319436119,1710736335955,-500.0,0.00033698,4]
[319436120,1710736335965,-869.9,0.00033698,4]
[319436121,1710736335974,-500.0,0.00033698,4]
[319436122,1710736335983,-1373.45,0.00033698,4]
[319436123,1710736335993,-536.23,0.00033698,4]
[319436124,1710736336002,-1105.28,0.00033698,4]
[319436125,1710736336011,-500.0,0.00033698,4]
[319436126,1710736336021,-490.59295219,0.00033698,4]
[319436127,1710736336031,-500.0,0.00033698,4]
[319436128,1710736336041,-500.0,0.00033698,4]
[319436129,1710736336050,-622.18,0.00033698,4]
[319436130,1710736336060,-500.0,0.00033698,4]
[319436131,1710736336069,-500.0,0.00033698,4]
[319436132,1710736336079,-500.0,0.00033698,4]
[319436133,1710736336089,-500.0,0.00033698,4]
[319436134,1710736336099,-501.4,0.00033698,4]
[319436135,1710736336109,-2231.25,0.00033698,4]
[319436136,1710736336118,-500.0,0.00033698,4]
[319436137,1710736336128,-507.52310353,0.00033698,4]
[319436138,1710736336137,-735.9,0.00033698,4]
[319436139,1710736336147,-500.0,0.00033698,4]
[319436140,1710736336156,-500.0,0.00033698,4]
[319436141,1710736336166,-500.0,0.00033698,4]
[319436142,1710736336175,-510.28698048,0.00033698,4]
[319436143,1710736336185,-943.04,0.00033698,4]
[319436144,1710736336195,-503.91,0.00033698,4]
[319436145,1710736336204,-500.0,0.00033698,4]
[319436146,1710736336214,-500.0,0.00033698,4]
[319436147,1710736336223,-1566.14,0.00033698,4]
[319436148,1710736336232,-500.0,0.00033698,4]
[319436149,1710736336241,-507.78,0.00033698,4]
[319436150,1710736336251,-500.0,0.00033698,4]
[319436151,1710736336260,-500.0,0.00033698,4]
[319436152,1710736336269,-500.0,0.00033698,4]
[319436153,1710736336280,-832.17,0.00033698,4]
[319436154,1710736336289,-358.79843399,0.00033698,4]
[319436155,1710736336298,-1123.76,0.00033698,4]
[319436156,1710736336307,-600.34,0.00033698,4]
[319436157,1710736336317,-710.22,0.00033698,4]
[319436158,1710736336326,-500.0,0.00033698,4]
[319436159,1710736336335,-500.0,0.00033698,4]
[319436160,1710736336344,-1438.95,0.00033698,4]
[319436161,1710736336353,-1027.19,0.00033698,4]
[319436162,1710736336362,-500.0,0.00033698,4]
[319436163,1710736336371,-500.0,0.00033698,4]
[319436164,1710736336381,-624.55,0.00033698,4]
[319436165,1710736336389,-595.77,0.00033698,4]
[319436166,1710736336399,-1826.25,0.00033698,4]
[319436167,1710736336408,-500.0,0.00033698,4]
[319436168,1710736336416,-931.82,0.00033698,4]
[319436169,1710736336426,-2156.89,0.00033698,4]
[319436170,1710736336435,-626.3,0.00033698,4]
[319436171,1710736336444,-500.0,0.00033698,4]
[319436172,1710736336453,-2005.2,0.00033698,4]
[319436173,1710736336462,-500.0,0.00033698,4]
[319436174,1710736336471,-307.78047776,0.00033698,4]
[319436175,1710736336480,-2463.3,0.00033698,4]
[319436176,1710736336489,-500.0,0.00033698,4]
[319436177,1710736336498,-500.0,0.00033698,4]
[319436178,1710736336507,-2094.29,0.00033698,4]
[319436179,1710736336516,-911.56,0.00033698,4]
[319436180,1710736336525,-500.0,0.00033698,4]
[319436181,1710736336535,-2639.58,0.00033698,4]
[319436182,1710736336544,-500.0,0.00033698,4]
[319436183,1710736336554,-500.0,0.00033698,4]
[319436184,1710736336563,-3465.75,0.00033698,4]
[319436185,1710736336573,-523.09,0.00033698,4]
[319436186,1710736336582,-500.0,0.00033698,4]
[319436187,1710736336591,-500.0,0.00033698,4]
[319436188,1710736336601,-1239.79,0.00033698,4]
[319436189,1710736336610,-500.0,0.00033698,4]
[319436190,1710736336619,-3439.16,0.00033698,4]
[319436191,1710736336628,-865.02,0.00033698,4]
[319436192,1710736336637,-770.0,0.00033698,4]
[319436193,1710736336646,-500.0,0.00033698,4]
[319436194,1710736336656,-1050.75,0.00033698,4]
[319436195,1710736336665,-639.93,0.00033698,4]
[319436196,1710736336675,-3922.62,0.00033698,4]
[319436197,1710736336684,-953.43,0.00033698,4]
[319436198,1710736336694,-611.87,0.00033698,4]
[319436199,1710736336704,-500.0,0.00033698,4]
[319436200,1710736336714,-798.65,0.00033698,4]
[319436201,1710736336723,-2710.57,0.00033698,4]
[319436202,1710736336732,-500.0,0.00033698,4]
[319436203,1710736336741,-2948.74,0.00033698,4]
[319436204,1710736336752,-539.71,0.00033698,4]
[319436205,1710736336764,-500.0,0.00033698,4]
[319436206,1710736336773,-500.0,0.00033698,4]
[319436207,1710736336782,-500.0,0.00033698,4]
[319436208,1710736336793,-500.0,0.00033698,4]
[319436209,1710736336802,-500.0,0.00033698,4]
[319436210,1710736336811,-1200.43,0.00033698,4]
[319436211,1710736336820,-500.0,0.00033698,4]
[319436212,1710736336829,-500.0,0.00033698,4]
[319436213,1710736336840,-500.0,0.00033698,4]
[319436214,1710736336850,-500.0,0.00033698,4]
[319436215,1710736336859,-646.93,0.00033698,4]
[319436216,1710736336869,-593.8,0.00033698,4]
[319436217,1710736336879,-3040.38,0.00033698,4]
[319436218,1710736336888,-912.86,0.00033698,4]
[319436219,1710736336897,-521.56,0.00033698,4]
[319436220,1710736336906,-498.69272651,0.00033698,4]
[319436221,1710736336915,-2075.71,0.00033698,4]
[319436222,1710736336925,-1026.81,0.00033698,4]
[319436223,1710736336934,-788.56,0.00033698,4]
[319436224,1710736336943,-500.0,0.00033698,4]
[319436225,1710736336953,-615.18,0.00033698,4]
[319436226,1710736336963,-500.0,0.00033698,4]
[319436227,1710736336972,-1506.09,0.00033698,4]
[319436228,1710736336981,-500.0,0.00033698,4]
[319436229,1710736336990,-1442.43,0.00033698,4]
[319436230,1710736337000,-640.66166991,0.00033698,4]
[319436231,1710736337009,-4584.29,0.00033698,4]
[319436232,1710736337018,-1419.83,0.00033698,4]
[319436233,1710736337027,-1416.16,0.00033698,4]
[319436234,1710736337037,-1501.08,0.00033698,4]
[319436235,1710736337046,-500.0,0.00033698,4]
[319436236,1710736337055,-1326.91,0.00033698,4]
[319436237,1710736337065,-500.0,0.00033698,4]
[319436238,1710736337074,-1157.88,0.00033698,4]
[319436239,1710736337083,-500.0,0.00033698,4]
[319436240,1710736337092,-522.83,0.00033698,4]
[319436241,1710736337102,-1901.89,0.00033698,4]
[319436242,1710736337111,-884.27,0.00033698,4]
[319436243,1710736337121,-500.0,0.00033698,4]
[319436244,1710736337131,-718.57,0.00033698,4]
[319436245,1710736337140,-500.0,0.00033698,4]
[319436246,1710736337149,-500.0,0.00033698,4]
[319436247,1710736337159,-626.44,0.00033698,4]
[319436248,1710736337168,-1481.56,0.00033698,4]
[319436249,1710736337177,-820.19,0.00033698,4]
[319436250,1710736337187,-616.04,0.00033698,4]
[319436251,1710736337196,-661.6,0.00033698,4]
[319436252,1710736337205,-807.78,0.00033698,4]
[319436253,1710736337215,-576.56,0.00033698,4]
[319436254,1710736337224,-500.0,0.00033698,4]
[319436255,1710736337234,-500.0,0.00033698,4]
[319436256,1710736337243,-1258.08,0.00033698,4]
[319436257,1710736337252,-922.75,0.00033698,4]
[319436258,1710736337262,-500.0,0.00033698,4]
[319436259,1710736337271,-500.0,0.00033698,4]
[319436260,1710736337281,-1859.01,0.00033698,4]
[319436261,1710736337290,-998.14,0.00033698,4]
[319436262,1710736337299,-712.78,0.00033698,4]
[319436263,1710736337309,-3134.02,0.00033698,4]
[319436264,1710736337318,-720.74,0.00033698,4]
[319436265,1710736337328,-835.55,0.00033698,4]
[319436266,1710736337337,-794.41,0.00033698,4]
[319436267,1710736337347,-3743.94,0.00033698,4]
[319436268,1710736337356,-500.0,0.00033698,4]
[319436269,1710736337366,-642.05,0.00033698,4]
[319436270,1710736337375,-1113.65,0.00033698,4]
[319436271,1710736337385,-589.6,0.00033698,4]
[319436272,1710736337394,-633.04,0.00033698,4]
[319436273,1710736337404,-512.73,0.00033698,4]
[319436274,1710736337413,-774.64,0.00033698,4]
[319436275,1710736337422,-1524.04,0.00033698,4]
[319436276,1710736337432,-1898.65,0.00033698,4]
[319436277,1710736337442,-1586.83,0.00033698,4]
[319436278,1710736337451,-500.0,0.00033698,4]
[319436279,1710736337460,-833.34,0.00033698,4]
[319436280,1710736337470,-1329.2,0.00033698,4]
[319436281,1710736337479,-500.0,0.00033698,4]
[319436282,1710736337488,-574.74,0.00033698,4]
[319436283,1710736337497,-501.93,0.00033698,4]
[319436284,1710736337506,-899.79,0.00033698,4]
[319436285,1710736337515,-500.0,0.00033698,4]
[319436286,1710736337525,-836.63,0.00033698,4]
[319436287,1710736337534,-663.74,0.00033698,4]
[319436288,1710736337544,-1143.03,0.00033698,4]
[319436289,1710736337553,-1917.2,0.00033698,4]
[319436290,1710736337563,-1716.33,0.00033698,4]
[319436291,1710736337572,-1304.54,0.00033698,4]
[319436292,1710736337581,-500.0,0.00033698,4]
[319436293,1710736337591,-705.47,0.00033698,4]
[319436294,1710736337601,-794.56,0.00033698,4]
[319436295,1710736337610,-500.0,0.00033698,4]
[319436296,1710736337620,-588.98,0.00033698,4]
[319436297,1710736337629,-2333.6,0.00033698,4]
[319436298,1710736337638,-560.65,0.00033698,4]
[319436299,1710736337647,-1061.17,0.00033698,4]
[319436300,1710736337657,-758.7,0.00033698,4]
[319436301,1710736337666,-1095.12,0.00033698,4]
[319436302,1710736337675,-2145.95,0.00033698,4]
[319436303,1710736337684,-1627.27,0.00033698,4]
[319436304,1710736337694,-500.0,0.00033698,4]
[319436305,1710736337703,-500.0,0.00033698,4]
[319436306,1710736337712,-2012.26,0.00033698,4]
[319436307,1710736337721,-1352.76,0.00033698,4]
[319436308,1710736337731,-537.95,0.00033698,4]
[319436309,1710736337741,-500.0,0.00033698,4]
[319436310,1710736337751,-2747.25,0.00033698,4]
[319436311,1710736337763,-606.33,0.00033698,4]
[319436312,1710736337775,-500.0,0.00033698,4]
[319436313,1710736337788,-500.0,0.00033698,4]
[319436314,1710736337797,-500.0,0.00033698,4]
[319436315,1710736337807,-500.0,0.00033698,4]
[319436316,1710736337816,-554.01,0.00033698,4]
[319436317,1710736337825,-807.58,0.00033698,4]
[319436318,1710736337834,-2956.82,0.00033698,4]
[319436319,1710736337844,-500.0,0.00033698,4]
[319436320,1710736337855,-500.0,0.00033698,4]
[319436321,1710736337864,-500.0,0.00033698,4]
[319436322,1710736337874,-1607.18,0.00033698,4]
[319436323,1710736337883,-500.0,0.00033698,4]
[319436324,1710736337893,-1221.54,0.00033698,4]
[319436325,1710736337903,-1838.23,0.00033698,4]
[319436326,1710736337913,-1026.01,0.00033698,4]
[319436327,1710736337922,-842.1,0.00033698,4]
[319436328,1710736337933,-512.31,0.00033698,4]
[319436329,1710736337942,-500.0,0.00033698,4]
[319436330,1710736337952,-831.26,0.00033698,4]
[319436331,1710736337962,-1448.23,0.00033698,4]
[319436332,1710736337971,-1157.32,0.00033698,4]
[319436333,1710736337980,-556.38,0.00033698,4]
[319436334,1710736337990,-1287.24,0.00033698,4]
[319436335,1710736338000,-1436.69,0.00033698,4]
[319436336,1710736338009,-1335.54,0.00033698,4]
[319436337,1710736338019,-500.0,0.00033698,4]
[319436338,1710736338029,-1968.76,0.00033698,4]
[319436339,1710736338040,-799.94,0.00033698,4]
[319436340,1710736338048,-1597.09,0.00033698,4]
[319436341,1710736338058,-500.0,0.00033698,4]
[319436342,1710736338066,-500.0,0.00033698,4]
[319436343,1710736338076,-500.0,0.00033698,4]
[319436344,1710736338085,-632.08,0.00033698,4]
[319436345,1710736338094,-681.46,0.00033698,4]
[319436346,1710736338104,-1138.91,0.00033698,4]
[319436347,1710736338114,-1427.1,0.00033698,4]
[319436348,1710736338124,-809.76,0.00033698,4]
[319436349,1710736338134,-500.0,0.00033698,4]
[319436350,1710736338143,-1229.86,0.00033698,4]
[319436351,1710736338152,-510.75754778,0.00033698,4]
[319436352,1710736338162,-691.68,0.00033698,4]
[319436353,1710736338171,-2635.68,0.00033698,4]
[319436354,1710736338185,-500.0,0.00033698,4]